fUST/lending_fUST_20240301
["ID","MTS","AMOUNT","RATE_DAILY","PERIOD"]
[315900624,1709255444453,-388.4847455,0.000207,2]
[315900626,1709255444464,-153.0,0.000207,2]
[315900628,1709255444474,-396.1936975,0.000207,2]
[315900630,1709255444483,-200.6643816,0.000207,2]
[315900632,1709255444492,-153.0,0.000207,2]
[315900634,1709255444501,-153.0,0.000207,2]
[315900636,1709255444510,-200.6643816,0.000207,2]
[315900638,1709255444520,-153.0,0.000207,2]
[315900639,1709255444529,-153.0,0.000207,2]
[315900641,1709255444538,-153.0,0.000207,2]
[315900643,1709255444547,-153.0,0.000207,2]
[315900645,1709255444558,-200.6643816,0.000207,2]
[315900647,1709255444567,-153.0,0.000207,2]
[315900650,1709255444577,-200.6643816,0.000207,2]
[315900652,1709255444586,-153.0,0.000207,2]
[315900654,1709255444595,-153.0,0.000207,2]
[315900656,1709255444605,-153.0,0.000207,2]
[315900658,1709255444614,-200.6643816,0.000207,2]
[315900660,1709255444623,-153.0,0.000207,2]
[315900662,1709255444632,-153.0,0.000207,2]
[315900664,1709255444642,-153.0,0.000207,2]
[315900665,1709255444651,-200.6643816,0.000207,2]
[315900668,1709255444661,-278.2948905,0.000207,2]
[315900669,1709255444670,-200.6643816,0.000207,2]
[315900671,1709255444683,-153.0,0.000207,2]
[315900673,1709255444692,-200.6643816,0.000207,2]
[315900675,1709255444701,-161.1320453,0.0002075,2]
[315900678,1709255444711,-500.0,0.00020795,2]
[315900680,1709255444722,-500.0,0.00020795,2]
[315900682,1709255444731,-500.0,0.00020795,2]
[315900683,1709255444740,-500.0,0.00020795,2]
[315900686,1709255444751,-500.0,0.00020795,2]
[315900688,1709255444762,-500.0,0.00020795,2]
[315900690,1709255444773,-546.6,0.00020795,2]
[315900691,1709255444782,-615.88,0.00020795,2]
[315900693,1709255444790,-1705.03,0.00020795,2]
[315900695,1709255444800,-500.0,0.00020795,2]
[315900697,1709255444809,-207.68,0.00020795,2]
[315900699,1709255444818,-500.0,0.00020795,2]
[315900701,1709255444828,-490.22,0.00020796,2]
[315900703,1709255444837,-500.0,0.00020796,2]
[315900706,1709255444847,-500.0,0.00020796,2]
[315900708,1709255444856,-546.6,0.00020796,2]
[315900710,1709255444865,-500.0,0.00020796,2]
[315900712,1709255444874,-237.02,0.00020796,2]
[315900713,1709255444883,-884.33,0.00020796,2]
[315900716,1709255444892,-500.0,0.00020796,2]
[315900718,1709255444901,-500.0,0.00020796,2]
[315900720,1709255444910,-1291.06202665,0.00020797,2]
[315900722,1709255444919,-212.0,0.00020797,2]
[315900724,1709255444928,-500.0,0.00020797,2]
[315900726,1709255444937,-546.6,0.00020797,2]
[315900727,1709255444947,-1324.54,0.00020883,2]
[315900730,1709255444957,-500.0,0.00020883,2]
[315900732,1709255444967,-507.34,0.00020883,2]
[315900734,1709255444977,-500.0,0.00020883,2]
[315900736,1709255444986,-154.81637835,0.00020893,2]
[315900737,1709255444995,-200.6643816,0.000209,2]
[315900739,1709255445004,-153.0,0.000209,2]
[315900741,1709255445013,-153.0,0.000209,2]
[315900743,1709255445022,-153.0,0.000209,2]
[315900745,1709255445031,-153.0,0.000209,2]
[315900747,1709255445040,-153.0,0.000209,2]
[315900749,1709255445050,-199.716849,0.000209,2]
[315900751,1709255445060,-161.1320453,0.000209,2]
[315900754,1709255445069,-157.37833458,0.000209,2]
[315900755,1709255445078,-150.06,0.00020997,2]
[315900758,1709255445088,-546.6,0.00020997,2]
[315900760,1709255445097,-1705.03,0.00020997,2]
[315900762,1709255445106,-500.0,0.00020997,2]
[315900763,1709255445115,-500.0,0.00020997,2]
[315900765,1709255445125,-2202.61,0.00020997,2]
[315900767,1709255445134,-884.33,0.00020997,2]
[315900770,1709255445143,-500.0,0.00020997,2]
[315900772,1709255445152,-212.66,0.00020997,2]
[315900774,1709255445161,-500.0,0.00020997,2]
[315900776,1709255445171,-2905.2370174,0.00020998,2]
[315900778,1709255445180,-546.6,0.00020998,2]
[315900779,1709255445189,-546.6,0.00020998,2]
[315900781,1709255445199,-1324.54,0.00020998,2]
[315900783,1709255445208,-1324.54,0.00020998,2]
[315900785,1709255445220,-1324.54,0.00020998,2]
[315900787,1709255445229,-1324.54,0.00020998,2]
[315900790,1709255445239,-500.0,0.00020998,2]
[315900791,1709255445249,-500.0,0.00020998,2]
[315900794,1709255445259,-500.0,0.00020998,2]
[315900796,1709255445268,-500.0,0.00020998,2]
[315900798,1709255445278,-1705.03,0.00020998,2]
[315900800,1709255445287,-1705.03,0.00020998,2]
[315900802,1709255445295,-1705.03,0.00020998,2]
[315900804,1709255445307,-1705.03,0.00020998,2]
[315900806,1709255445318,-1212.00001212,0.00020998,2]
[315900808,1709255445327,-500.0,0.00020998,2]
[315900810,1709255445336,-206.3597407,0.00020998,2]
[315900812,1709255445349,-266.79324148,0.00020998,2]
[315901096,1709255448230,-26.84701782,0.00020998,2]
[315901099,1709255448240,-226.34298218,0.00020998,2]
[315902890,1709256632018,-580.48113416,0.00018899,2]
[315902891,1709256632028,-349.01456373,0.000189,2]
[315902893,1709256632038,-162.238784,0.00019423,2]
[315902894,1709256632047,-607.15472542,0.00019668,2]
[315902895,1709256632083,-408.72117618,0.00019668,2]
[315902896,1709256632093,-620.00158699,0.00019759,2]
[315902897,1709256632103,-200.0,0.0002,2]
[315902898,1709256632113,-1534.83448443,0.000206,2]
[315902899,1709256632123,-500.0,0.00020696,2]
[315902900,1709256632132,-500.0,0.00020696,2]
[315902901,1709256632142,-500.0,0.00020696,2]
[315902902,1709256632151,-500.0,0.00020696,2]
[315902904,1709256632160,-467.36424832,0.00020696,2]
[315902906,1709256632172,-32.67733168,0.00020696,2]
[315902908,1709256632181,-500.0,0.00020696,2]
[315902910,1709256632191,-500.0,0.00020696,2]
[315902912,1709256632200,-500.0,0.00020697,2]
[315902914,1709256632210,-440.65,0.00020697,2]
[315902916,1709256632219,-500.0,0.00020697,2]
[315902918,1709256632228,-500.0,0.00020697,2]
[315902920,1709256632238,-500.0,0.00020697,2]
[315902922,1709256632247,-488.96,0.00020697,2]
[315902923,1709256632258,-200.6643816,0.000207,2]
[315902924,1709256632267,-200.6643816,0.000207,2]
[315902925,1709256632276,-103.76611125,0.000207,2]
[315902934,1709256640924,-100.10761195,0.000207,2]
[315902935,1709256640934,-620.00007935,0.00020747,2]
[315902936,1709256640944,-200.6643816,0.000208,2]
[315902937,1709256640954,-200.6643816,0.000208,2]
[315902938,1709256640964,-200.6643816,0.000208,2]
[315902939,1709256640973,-200.6643816,0.000208,2]
[315902940,1709256640982,-200.6643816,0.000208,2]
[315902941,1709256640992,-630.97,0.00020988,3]
[315902942,1709256641001,-1076.12,0.00020995,2]
[315902943,1709256641012,-512.51,0.00020995,2]
[315902944,1709256641022,-500.0,0.00020995,2]
[315902945,1709256641031,-825.67,0.00020995,2]
[315902946,1709256641042,-500.0,0.00020995,2]
[315902947,1709256641052,-500.0,0.00020995,2]
[315902948,1709256641062,-500.0,0.00020995,2]
[315902949,1709256641072,-500.0,0.00020995,2]
[315902950,1709256641082,-500.0,0.00020996,2]
[315902951,1709256641091,-500.0,0.00020996,2]
[315902952,1709256641100,-500.0,0.00020996,2]
[315902953,1709256641109,-500.0,0.00020996,2]
[315902954,1709256641119,-500.0,0.00020996,2]
[315902955,1709256641128,-362.38567131,0.00020996,2]
[315902956,1709256641137,-500.0,0.00020996,2]
[315902957,1709256641146,-500.0,0.00020996,2]
[315902958,1709256641155,-500.0,0.00020996,2]
[315902959,1709256641164,-633.29303161,0.00020996,2]
[315902960,1709256641174,-500.0,0.00020996,2]
[315902961,1709256641183,-500.0,0.00020996,2]
[315902962,1709256641192,-532.84,0.00020996,2]
[315902963,1709256641202,-500.0,0.00020996,2]
[315902964,1709256641213,-500.0,0.00020996,2]
[315902965,1709256641222,-500.0,0.00020996,2]
[315902966,1709256641233,-500.0,0.00020996,2]
[315902967,1709256641242,-500.0,0.00020996,2]
[315902968,1709256641252,-500.0,0.00020996,2]
[315902969,1709256641263,-2179.77,0.00020997,2]
[315902970,1709256641273,-500.0,0.00020997,2]
[315902971,1709256641282,-1263.27,0.00020997,2]
[315902972,1709256641292,-177.31,0.00020997,2]
[315902973,1709256641303,-825.67,0.00020997,2]
[315902974,1709256641313,-500.0,0.00020997,2]
[315902975,1709256641322,-412.818709,0.00020997,2]
[315902976,1709256641335,-87.181291,0.00020997,2]
[315902977,1709256641344,-500.0,0.00020997,2]
[315902978,1709256641354,-500.0,0.00020997,2]
[315902979,1709256641363,-500.0,0.00020997,2]
[315902981,1709256641373,-500.0,0.00020997,2]
[315902982,1709256641382,-471.91315507,0.00020997,2]
[315902998,1709256644125,-525.81,0.00020989,3]
[315902999,1709256644134,-28.08684493,0.00020997,2]
[315903000,1709256644144,-500.0,0.00020997,2]
[315903001,1709256644153,-226.47547055,0.00020998,2]
[315903002,1709256644162,-2179.77,0.00020998,2]
[315903004,1709256644172,-2179.77,0.00020998,2]
[315903005,1709256644181,-1102.43118713,0.00020998,2]
[315903006,1709256644220,-1010.15960234,0.00020998,2]
[315903007,1709256644519,-67.17921053,0.00020998,2]
[315903008,1709256644529,-500.0,0.00020998,2]
[315903009,1709256644538,-500.0,0.00020998,2]
[315903010,1709256644548,-500.0,0.00020998,2]
[315903011,1709256644557,-1076.12,0.00020998,2]
[315903012,1709256644678,-237.36193334,0.00020998,2]
[315903013,1709256644692,-838.75806666,0.00020998,2]
[315903014,1709256644701,-500.0,0.00020998,2]
[315903015,1709256644710,-3.27739798,0.00020998,2]
[315903016,1709256644722,-1072.84260202,0.00020998,2]
[315903017,1709256644732,-1076.12,0.00020998,2]
[315903018,1709256644741,-500.0,0.00020998,2]
[315903019,1709256644750,-204.47626855,0.00020998,2]
[315903077,1709256645919,-855.73,0.00020995,2]
[315903079,1709256645929,-295.52373145,0.00020998,2]
[315903081,1709256645938,-416.70626855,0.00020998,2]
[315903082,1709256645950,-83.29373145,0.00020998,2]
[315903083,1709256645959,-512.51,0.00020998,2]
[315903084,1709256645969,-500.0,0.00020998,2]
[315903085,1709256645978,-512.51,0.00020998,2]
[315903086,1709256645987,-500.0,0.00020998,2]
[315903087,1709256645997,-512.51,0.00020998,2]
[315903088,1709256646005,-188.66067138,0.00020998,2]
[315903089,1709256646020,-376.02932862,0.00020998,2]
[315903090,1709256646029,-86.54666858,0.00020998,2]
[315903091,1709256646041,-425.96333142,0.00020998,2]
[315903092,1709256646053,-1263.27,0.00020998,2]
[315903093,1709256646063,-1263.27,0.00020998,2]
[315903094,1709256646073,-1263.27,0.00020998,2]
[315903095,1709256646082,-1263.27,0.00020998,2]
[315903096,1709256646090,-825.67,0.00020998,2]
[315903097,1709256646100,-825.67,0.00020998,2]
[315903098,1709256646109,-825.67,0.00020998,2]
[315903099,1709256646117,-500.0,0.00020998,2]
[315903100,1709256646128,-500.0,0.00020998,2]
[315903101,1709256646136,-500.0,0.00020998,2]
[315903102,1709256646145,-500.0,0.00020998,2]
[315903103,1709256646154,-255.48512638,0.00020998,2]
[315903180,1709257838058,-580.49803866,0.00018899,2]
[315903182,1709257838068,-421.34682693,0.000189,2]
[315903184,1709257838077,-34.27395425,0.00019751,2]
[315903189,1709257838122,-150.85674895,0.00019751,2]
[315903192,1709257838133,-191.2973209,0.0001977,2]
[315903193,1709257838142,-8.4459591,0.0002,2]
[315903196,1709257838155,-191.5540409,0.0002,2]
[315903197,1709257838164,-157.9919493,0.00020897,2]
[315903199,1709257838174,-332.98994152,0.00020899,2]
[315903202,1709257838185,-438.17,0.00020988,3]
[315903203,1709257838194,-506.78189736,0.00020997,2]
[315903204,1709257838204,-508.64022157,0.00020997,2]
[315903205,1709257838213,-135.88465668,0.00020997,2]
[315903224,1709257842917,-365.14,0.00020988,3]
[315903225,1709257842927,-366.149041,0.00020997,2]
[315903226,1709257842936,-513.06364026,0.00020997,2]
[315903227,1709257842946,-507.32672611,0.00020997,2]
[315903228,1709257842955,-500.0,0.00020997,2]
[315903229,1709257842965,-256.46131783,0.00020997,2]
[315903230,1709257842975,-503.15594474,0.00020997,2]
[315903231,1709257842985,-503.62612225,0.00020997,2]
[315903232,1709257842995,-501.62883076,0.00020997,2]
[315903233,1709257843004,-501.47746621,0.00020997,2]
[315903234,1709257843015,-486.40898752,0.00020997,2]
[315903235,1709257843024,-500.0,0.00020997,2]
[315903236,1709257843035,-500.0,0.00020997,2]
[315903237,1709257843044,-501.83059042,0.00020997,2]
[315903238,1709257843053,-500.0,0.00020997,2]
[315903239,1709257843064,-504.99949782,0.00020997,2]
[315903240,1709257843074,-533.92930285,0.00020997,2]
[315903241,1709257843083,-506.09525925,0.00020997,2]
[315903242,1709257843093,-500.0,0.00020997,2]
[315903243,1709257843102,-500.0,0.00020997,2]
[315903244,1709257843112,-500.0,0.00020997,2]
[315903245,1709257843122,-506.81183448,0.00020997,2]
[315903246,1709257843131,-502.75927623,0.00020997,2]
[315903247,1709257843141,-501.5574149,0.00020997,2]
[315903248,1709257843151,-500.0,0.00020997,2]
[315903249,1709257843160,-339.9110945,0.00020997,2]
[315903250,1709257843170,-500.0,0.00020997,2]
[315903251,1709257843179,-199.57323347,0.00020997,2]
[315903252,1709257843198,-506.99424142,0.00020997,2]
[315903253,1709257843210,-500.0,0.00020997,2]
[315903254,1709257843220,-1365.31,0.00020997,2]
[315903255,1709257843230,-500.0,0.00020997,2]
[315903256,1709257843239,-504.40621859,0.00020997,2]
[315903257,1709257843249,-501.58142303,0.00020997,2]
[315903258,1709257843259,-579.73221372,0.00020997,2]
[315903259,1709257843269,-656.33,0.00020997,2]
[315903260,1709257843279,-500.0,0.00020997,2]
[315903261,1709257843288,-500.60499966,0.00020997,2]
[315903262,1709257843298,-502.33736591,0.00020997,2]
[315903263,1709257843307,-500.0,0.00020997,2]
[315903264,1709257843317,-502.10819938,0.00020997,2]
[315903265,1709257843331,-500.56339401,0.00020997,2]
[315903266,1709257843341,-500.0,0.00020997,2]
[315903267,1709257843351,-507.61239147,0.00020997,2]
[315903268,1709257843360,-453.14691874,0.00020997,2]
[315903269,1709257843371,-508.26332275,0.00020997,2]
[315903270,1709257843381,-2241.82,0.00020997,2]
[315903271,1709257843391,-524.62602389,0.00020997,2]
[315903272,1709257843401,-511.83491955,0.00020997,2]
[315903273,1709257843413,-500.0,0.00020997,2]
[315903274,1709257843424,-503.35999679,0.00020997,2]
[315903275,1709257843433,-501.30622378,0.00020997,2]
[315903276,1709257843443,-31.08548396,0.00020997,2]
[315903277,1709257843468,-477.91599228,0.00020997,2]
[315903278,1709257843477,-145.01976253,0.00020997,2]
[315903279,1709257843490,-354.98023747,0.00020997,2]
[315903280,1709257843499,-263.35295005,0.00020997,2]
[315903281,1709257843509,-500.0,0.00020997,2]
[315903282,1709257843518,-500.0,0.00020997,2]
[315903283,1709257843527,-376.50351752,0.00020997,2]
[315903287,1709257846071,-131.81002621,0.00020997,2]
[315903288,1709257846081,-348.15829468,0.00020997,2]
[315903289,1709257846093,-153.29559987,0.00020997,2]
[315903290,1709257846103,-503.55455983,0.00020997,2]
[315903291,1709257846112,-399.54847969,0.00020997,2]
[315903295,1709258475775,2000.0,0.00021,30]
[315903296,1709258476237,2000.0,0.0002101,30]
[315903297,1709258476821,2000.0,0.0002102,30]
[315903298,1709258477368,2000.0,0.0002103,30]
[315903299,1709258477908,2000.0,0.0002104,30]
[315903300,1709258478513,2031.84669,0.0002105,30]
[315903305,1709259030276,-580.49803866,0.00018417,2]
[315903306,1709259030298,-37843.9600478,0.00018418,2]
[315903427,1709259041379,-158.04431282,0.00018646,2]
[315903428,1709259041388,-741.77764384,0.00018746,2]
[315903429,1709259041402,-846.98175724,0.00018746,2]
[315903430,1709259041413,-25.81840502,0.00018746,2]
[315903431,1709259041423,-405.8200411,0.0001895,2]
[315903432,1709259041433,-305.7919504,0.00019282,2]
[315903433,1709259041442,-669.0997678,0.0001931,2]
[315903434,1709259041451,-200.0,0.0002,2]
[315903435,1709259041460,-200.7008514,0.00020378,2]
[315903436,1709259041470,-200.4335199,0.00020378,2]
[315903437,1709259041479,-255.88581788,0.00020547,2]
[315903438,1709259041490,-500.0,0.00020547,2]
[315903439,1709259041499,-506.75693045,0.00020547,2]
[315903440,1709259041509,-496.77847244,0.00020547,2]
[315903441,1709259041518,-500.0,0.00020547,2]
[315903442,1709259041527,-472.77368358,0.00020547,2]
[315903443,1709259041536,-501.92552554,0.00020547,2]
[315903444,1709259041545,-500.46595872,0.00020547,2]
[315903445,1709259041555,-501.91386999,0.00020547,2]
[315903446,1709259041564,-500.0,0.00020547,2]
[315903447,1709259041574,-500.0,0.00020547,2]
[315903448,1709259041583,-500.0,0.00020547,2]
[315903449,1709259041592,-500.0,0.00020547,2]
[315903450,1709259041601,-150.17178103,0.00020547,2]
[315903451,1709259041611,-628.98,0.00020547,2]
[315903452,1709259041620,-500.0,0.00020547,2]
[315903453,1709259041629,-500.0,0.00020547,2]
[315903454,1709259041638,-403.74247992,0.00020547,2]
[315903455,1709259041648,-500.0,0.00020547,2]
[315903456,1709259041657,-500.0,0.00020547,2]
[315903457,1709259041667,-500.0,0.00020547,2]
[315903458,1709259041677,-500.0,0.00020547,2]
[315903459,1709259041691,-323.51950883,0.00020547,2]
[315903460,1709259041700,-501.04591887,0.00020547,2]
[315903461,1709259041710,-1057.63,0.00020547,2]
[315903462,1709259041720,-416.69365387,0.00020547,2]
[315903463,1709259041729,-1308.42,0.00020547,2]
[315903464,1709259041738,-200.7008514,0.000206,2]
[315903465,1709259041747,-624.78550312,0.00020695,2]
[315903466,1709259041757,-175.5,0.000209,2]
[315903467,1709259041768,-390.92,0.00020987,3]
[315903468,1709259041777,-672.84,0.00020987,3]
[315903469,1709259041786,-412.77,0.00020988,3]
[315903470,1709259041795,-206.38,0.00020988,3]
[315903471,1709259041804,-619.19,0.00020988,3]
[315903472,1709259041814,-290.11128606,0.00020997,2]
[315903473,1709259041823,-481.60163012,0.00020997,2]
[315903474,1709259041832,-500.0,0.00020997,2]
[315903475,1709259041841,-500.9,0.00020997,2]
[315903476,1709259041851,-426.08146592,0.00020997,2]
[315903477,1709259041860,-171.0907265,0.00020997,2]
[315903478,1709259041869,-500.0,0.00020997,2]
[315903479,1709259041879,-500.0,0.00020997,2]
[315903480,1709259041888,-628.11,0.00020997,2]
[315903481,1709259041899,-500.0,0.00020997,2]
[315903482,1709259041908,-500.0,0.00020997,2]
[315903483,1709259041917,-2148.41,0.00020997,2]
[315903484,1709259041926,-291.20461031,0.00020997,2]
[315903485,1709259041935,-500.0,0.00020997,2]
[315903486,1709259041945,-628.98,0.00020997,2]
[315903487,1709259041954,-500.0,0.00020997,2]
[315903488,1709259041963,-500.0,0.00020997,2]
[315903489,1709259041973,-500.0,0.00020997,2]
[315903490,1709259041982,-404.57758158,0.00020997,2]
[315903491,1709259041991,-266.43752496,0.00020997,2]
[315903492,1709259042000,-538.57,0.00020997,2]
[315903493,1709259042009,-1057.63,0.00020997,2]
[315903494,1709259042018,-1308.42,0.00020997,2]
[315903495,1709259042027,-8003.68364022,0.00020998,2]
[315903496,1709259042036,-229.42,0.00020998,2]
[315903497,1709259042045,-500.0,0.00020998,2]
[315903498,1709259042054,-500.0,0.00020998,2]
[315903499,1709259042063,-500.0,0.00020998,2]
[315903500,1709259042072,-212.69876655,0.00020998,2]
[315903501,1709259042081,-500.0,0.00020998,2]
[315903502,1709259042090,-500.0,0.00020998,2]
[315903503,1709259042100,-500.0,0.00020998,2]
[315903504,1709259042109,-500.0,0.00020998,2]
[315903505,1709259042118,-500.0,0.00020998,2]
[315903506,1709259042128,-252.34879102,0.00020998,2]
[315903507,1709259042137,-2148.41,0.00020998,2]
[315903508,1709259042148,-2148.41,0.00020998,2]
[315903509,1709259042158,-2148.41,0.00020998,2]
[315903510,1709259042167,-2148.41,0.00020998,2]
[315903511,1709259042176,-500.0,0.00020998,2]
[315903512,1709259042185,-628.98,0.00020998,2]
[315903513,1709259042195,-500.0,0.00020998,2]
[315903514,1709259042205,-628.98,0.00020998,2]
[315903515,1709259042214,-500.0,0.00020998,2]
[315903516,1709259042223,-628.98,0.00020998,2]
[315903517,1709259042233,-500.0,0.00020998,2]
[315903518,1709259042242,-500.0,0.00020998,2]
[315903519,1709259042252,-500.0,0.00020998,2]
[315903520,1709259042261,-500.0,0.00020998,2]
[315903521,1709259042270,-518.0517331,0.00020998,2]
[315903522,1709259042279,-500.0,0.00020998,2]
[315903523,1709259042289,-439.75844861,0.00020998,2]
[315903524,1709259042298,-1057.63,0.00020998,2]
[315903525,1709259042307,-1057.63,0.00020998,2]
[315903526,1709259042318,-1057.63,0.00020998,2]
[315903527,1709259042329,-1308.42,0.00020998,2]
[315903528,1709259042338,-1308.42,0.00020998,2]
[315903529,1709259042347,-1308.42,0.00020998,2]
[315903530,1709259042357,-151.0,0.00020999,2]
[315903531,1709259042366,-151.0,0.00020999,2]
[315903532,1709259042375,-151.334692,0.00020999,2]
[315903533,1709259042384,-151.0,0.00020999,2]
[315903534,1709259042395,-151.0,0.00020999,2]
[315903535,1709259042404,-151.0,0.00020999,2]
[315903536,1709259042413,-153.219609,0.00020999,2]
[315903537,1709259042422,-500.0,0.00020999,2]
[315903538,1709259042430,-500.0,0.00020999,2]
[315903539,1709259042439,-500.0,0.00020999,2]
[315903540,1709259042449,-500.0,0.00020999,2]
[315903541,1709259042457,-500.0,0.00020999,2]
[315903542,1709259042466,-500.0,0.00020999,2]
[315903543,1709259042475,-500.0,0.00020999,2]
[315903544,1709259042484,-500.0,0.00020999,2]
[315903545,1709259042493,-500.0,0.00020999,2]
[315903546,1709259042502,-500.0,0.00020999,2]
[315903547,1709259042510,-500.0,0.00020999,2]
[315903548,1709259042520,-500.0,0.00020999,2]
[315903549,1709259042529,-438.45,0.00020999,2]
[315903550,1709259042538,-191.578016,0.00020999,2]
[315903551,1709259042546,-191.578016,0.00020999,2]
[315903552,1709259042555,-191.578016,0.00020999,2]
[315903553,1709259042565,-191.578016,0.00020999,2]
[315903554,1709259042574,-191.578016,0.00020999,2]
[315903555,1709259042583,-191.578016,0.00020999,2]
[315903556,1709259042592,-191.578016,0.00020999,2]
[315903557,1709259042601,-191.578016,0.00020999,2]
[315903558,1709259042610,-191.578016,0.00020999,2]
[315903559,1709259042620,-191.578016,0.00020999,2]
[315903560,1709259042629,-191.578016,0.00020999,2]
[315903561,1709259042638,-191.578016,0.00020999,2]
[315903562,1709259042649,-191.578016,0.00020999,2]
[315903563,1709259042658,-191.578016,0.00020999,2]
[315903564,1709259042672,-191.578016,0.00020999,2]
[315903565,1709259042681,-191.578016,0.00020999,2]
[315903566,1709259042691,-151.362729,0.00020999,2]
[315903567,1709259042700,-151.0,0.00020999,2]
[315903568,1709259042710,-151.0,0.00020999,2]
[315903570,1709259042720,-152.434961,0.00020999,2]
[315903572,1709259042729,-500.0,0.00020999,2]
[315903573,1709259042738,-500.0,0.00020999,2]
[315903575,1709259042748,-500.0,0.00020999,2]
[315903576,1709259042758,-500.0,0.00020999,2]
[315903577,1709259042767,-500.0,0.00020999,2]
[315903578,1709259042776,-500.0,0.00020999,2]
[315903580,1709259042786,-500.0,0.00020999,2]
[315903582,1709259042795,-500.0,0.00020999,2]
[315903584,1709259042805,-500.0,0.00020999,2]
[315903586,1709259042815,-500.0,0.00020999,2]
[315903587,1709259042825,-500.0,0.00020999,2]
[315903588,1709259042835,-500.0,0.00020999,2]
[315903589,1709259042844,-500.0,0.00020999,2]
[315903590,1709259042854,-500.0,0.00020999,2]
[315903591,1709259042863,-279.94168118,0.00020999,2]
[315903593,1709259042873,-2148.41,0.00020999,2]
[315903595,1709259042883,-2148.41,0.00020999,2]
[315903597,1709259042892,-2148.41,0.00020999,2]
[315903600,1709259042903,-2148.41,0.00020999,2]
[315903601,1709259042912,-2148.41,0.00020999,2]
[315903602,1709259042921,-2148.41,0.00020999,2]
[315903603,1709259042930,-457.77870827,0.00020999,2]
[315903608,1709259043235,-560.7,0.00020989,3]
[315903609,1709259043245,-1690.63129173,0.00020999,2]
[315903610,1709259043255,-2148.41,0.00020999,2]
[315903611,1709259043264,-2148.41,0.00020999,2]
[315903612,1709259043274,-1418.80110444,0.00020999,2]
[315903613,1709259043294,-699.92265608,0.00020999,2]
[315903616,1709259046240,-580.49803866,0.00020998,2]
[315903617,1709259046250,-29.68623948,0.00020999,2]
[315903618,1709259046259,-2148.41,0.00020999,2]
[315903619,1709259046268,-307.20828859,0.00020999,2]
[315903623,1709259087313,6163.19442688,0.0003,120]
[315903624,1709259181318,3568.62,0.0003,120]
[315903625,1709259426242,169.968857,0.00028493,120]
[315903677,1709260238437,-580.49803866,0.00019177,2]
[315903679,1709260238448,-166.666666,0.00019178,2]
[315903681,1709260238459,-371.939973,0.00019451,2]
[315903683,1709260238469,-1309.2621085,0.00019451,2]
[315903685,1709260238478,-50.54923214,0.00019643,2]
[315903692,1709260241577,-6105.33135148,0.00019643,2]
[315903696,1709260244312,-10500.0,0.00019643,2]
[315903700,1709260246437,-8244.11941638,0.00019643,2]
[315903701,1709260246447,-166.666666,0.00019688,2]
[315903702,1709260246597,-292.2,0.0002,2]
[315903703,1709260246607,-332.7370688,0.00020186,5]
[315903704,1709260246617,-166.666666,0.00020198,2]
[315903705,1709260246626,-703.33,0.00020547,2]
[315903706,1709260246635,-166.666666,0.00020708,2]
[315903707,1709260246644,-264.04221003,0.00020899,2]
[315903708,1709260246654,-264.04221001,0.00020899,2]
[315903709,1709260246663,-264.04221001,0.000209,2]
[315903710,1709260246672,-264.04221001,0.000209,2]
[315903711,1709260246682,-175.5,0.000209,2]
[315903712,1709260246691,-264.04221001,0.000209,2]